fUSD/lending_fUSD_20240403
["ID","MTS","AMOUNT","RATE_DAILY","PERIOD"]
[321417821,1712177868851,-223.12237,0.00049315,120]
[321417822,1712177868875,-2166.002255,0.00049315,120]
[321417823,1712177868901,-2166.002255,0.00049315,120]
[321417824,1712177868925,-2166.002255,0.00049315,120]
[321417825,1712177868949,-2166.002255,0.00049315,120]
[321417826,1712177868972,-2166.002255,0.00049315,120]
[321417827,1712177868995,-2166.002255,0.00049315,120]
[321417828,1712177869019,-2166.002255,0.00049315,120]
[321417829,1712177869042,-2166.002255,0.00049315,120]
[321417830,1712177869067,-2166.002255,0.00049315,120]
[321417831,1712177869090,-2166.002255,0.00049315,120]
[321417832,1712177869114,-2166.002255,0.00049315,120]
[321417833,1712177869137,-2166.002255,0.00049315,120]
[321417834,1712177869164,-2166.002255,0.00049315,120]
[321417835,1712177869190,-2166.002255,0.00049315,120]
[321417836,1712177869216,-2166.002255,0.00049315,120]
[321417837,1712177869243,-2166.002255,0.00049315,120]
[321417838,1712177869269,-2166.002255,0.00049315,120]
[321417839,1712177869294,-170.398702,0.00049315,120]
[321417840,1712177869319,-2166.002255,0.00049315,120]
[321417841,1712177869343,-2166.002255,0.00049315,120]
[321417842,1712177869367,-170.398702,0.00049315,120]
[321417843,1712177869391,-2166.002252,0.00049315,120]
[321417844,1712177869416,-170.398702,0.00049315,120]
[321417845,1712177869439,-170.398702,0.00049315,120]
[321417846,1712177869461,-170.398702,0.00049315,120]
[321417847,1712177869487,-170.398702,0.00049315,120]
[321417848,1712177869513,-170.398702,0.00049315,120]
[321417849,1712177869724,-170.398702,0.00049315,120]
[321417850,1712177869749,-170.398702,0.00049315,120]
[321417851,1712177869773,-170.398702,0.00049315,120]
[321417852,1712177869797,-170.398702,0.00049315,120]
[321417853,1712177869820,-170.398702,0.00049315,120]
[321417854,1712177869843,-170.398702,0.00049315,120]
[321417855,1712177869867,-170.398702,0.00049315,120]
[321417856,1712177869890,-170.398702,0.00049315,120]
[321417857,1712177869914,-170.398702,0.00049315,120]
[321417858,1712177869937,-170.398702,0.00049315,120]
[321417859,1712177869960,-170.398702,0.00049315,120]
[321417860,1712177869984,-170.398702,0.00049315,120]
[321417861,1712177870007,-151.0,0.00049315,120]
[321417862,1712177870030,-170.398708,0.00049315,120]
[321417863,1712177870054,-197.685418,0.00049315,120]
[321417864,1712177870079,-360.206481,0.00049315,120]
[321417865,1712177870103,-360.206481,0.00049315,120]
[321417866,1712177870126,-360.206481,0.00049315,120]
[321417867,1712177870151,-360.206481,0.00049315,120]
[321417868,1712177870175,-360.206481,0.00049315,120]
[321417869,1712177870200,-360.206481,0.00049315,120]
[321417870,1712177870224,-360.206481,0.00049315,120]
[321417871,1712177870247,-360.206481,0.00049315,120]
[321417872,1712177870274,-360.206481,0.00049315,120]
[321417873,1712177870297,-151.0,0.00049315,120]
[321417874,1712177870322,-360.206481,0.00049315,120]
[321417875,1712177870347,-151.0,0.00049315,120]
[321417876,1712177870372,-360.206481,0.00049315,120]
[321417877,1712177870397,-151.0,0.00049315,120]
[321417878,1712177870423,-360.206481,0.00049315,120]
[321417879,1712177870447,-151.0,0.00049315,120]
[321417880,1712177870472,-360.206481,0.00049315,120]
[321417881,1712177870498,-151.0,0.00049315,120]
[321417882,1712177870523,-360.206481,0.00049315,120]
[321417883,1712177870548,-151.0,0.00049315,120]
[321417884,1712177870574,-360.206481,0.00049315,120]
[321417885,1712177870599,-151.0,0.00049315,120]
[321417886,1712177870625,-360.206481,0.00049315,120]
[321417887,1712177870652,-151.0,0.00049315,120]
[321417888,1712177870679,-360.206481,0.00049315,120]
[321417889,1712177870704,-360.206481,0.00049315,120]
[321417890,1712177870730,-360.206481,0.00049315,120]
[321417891,1712177870754,-151.0,0.00049315,120]
[321417892,1712177870779,-360.206485,0.00049315,120]
[321417893,1712177870803,-155.503559,0.00049315,120]
[321417894,1712177870828,-288.132434,0.00049315,120]
[321417895,1712177870853,-288.132434,0.00049315,120]
[321417896,1712177870877,-288.132434,0.00049315,120]
[321417897,1712177870902,-288.132434,0.00049315,120]
[321417898,1712177870926,-288.132434,0.00049315,120]
[321417899,1712177870950,-288.132434,0.00049315,120]
[321417900,1712177870974,-288.132434,0.00049315,120]
[321417901,1712177870997,-151.0,0.00049315,120]
[321417902,1712177871021,-288.132434,0.00049315,120]
[321417903,1712177871043,-151.0,0.00049315,120]
[321417904,1712177871066,-152.817679,0.00049315,120]
[321417905,1712177871090,-288.132434,0.00049315,120]
[321417906,1712177871114,-288.132434,0.00049315,120]
[321417907,1712177871138,-288.132434,0.00049315,120]
[321417908,1712177871167,-288.132434,0.00049315,120]
[321417909,1712177871194,-288.132434,0.00049315,120]
[321417910,1712177871219,-288.132434,0.00049315,120]
[321417911,1712177871245,-288.132434,0.00049315,120]
[321417912,1712177871273,-288.132434,0.00049315,120]
[321417913,1712177871298,-288.132434,0.00049315,120]
[321417914,1712177871322,-288.132434,0.00049315,120]
[321417915,1712177871345,-288.132434,0.00049315,120]
[321417916,1712177871370,-288.132432,0.00049315,120]
[321417917,1712177871395,-151.0,0.00049315,120]
[321417918,1712177871420,-151.0,0.00049315,120]
[321417919,1712177871444,-151.0,0.00049315,120]
[321417920,1712177871470,-151.0,0.00049315,120]
[321417921,1712177871495,-578.359478,0.00049315,120]
[321417922,1712177871520,-151.0,0.00049315,120]
[321417923,1712177871545,-578.359478,0.00049315,120]
[321417924,1712177871569,-151.0,0.00049315,120]
[321417925,1712177871595,-578.359478,0.00049315,120]
[321417926,1712177871619,-195.062432,0.00049315,120]
[321417927,1712177871644,-578.359478,0.00049315,120]
[321417928,1712177871671,-578.359478,0.00049315,120]
[321417929,1712177871696,-578.359478,0.00049315,120]
[321417930,1712177871721,-578.359478,0.00049315,120]
[321417931,1712177871746,-578.359478,0.00049315,120]
[321417932,1712177871771,-578.359478,0.00049315,120]
[321417933,1712177871795,-578.359478,0.00049315,120]
[321417934,1712177871819,-578.359478,0.00049315,120]
[321417935,1712177872004,-578.359478,0.00049315,120]
[321417936,1712177872029,-578.359478,0.00049315,120]
[321417937,1712177872053,-578.359478,0.00049315,120]
[321417938,1712177872076,-151.0,0.00049315,120]
[321417939,1712177872098,-151.0,0.00049315,120]
[321417940,1712177872120,-151.0,0.00049315,120]
[321417941,1712177872143,-192.594505,0.00049315,120]
[321417942,1712177872169,-763.12006,0.00049315,120]
[321417943,1712177872194,-763.12006,0.00049315,120]
[321417944,1712177872218,-763.12006,0.00049315,120]
[321417945,1712177872241,-763.12006,0.00049315,120]
[321417946,1712177872265,-763.12006,0.00049315,120]
[321417947,1712177872291,-763.12006,0.00049315,120]
[321417948,1712177872316,-763.12006,0.00049315,120]
[321417949,1712177872340,-763.12006,0.00049315,120]
[321417950,1712177872365,-613.563772,0.00049315,120]
[321417951,1712177872389,-763.12006,0.00049315,120]
[321417952,1712177872414,-613.563772,0.00049315,120]
[321417953,1712177872437,-763.12006,0.00049315,120]
[321417954,1712177872461,-613.563772,0.00049315,120]
[321417955,1712177872485,-763.12006,0.00049315,120]
[321417956,1712177872508,-613.563772,0.00049315,120]
[321417957,1712177872533,-763.12006,0.00049315,120]
[321417958,1712177872557,-613.563772,0.00049315,120]
[321417959,1712177872581,-763.12006,0.00049315,120]
[321417960,1712177872604,-613.563772,0.00049315,120]
[321417961,1712177872628,-613.563772,0.00049315,120]
[321417962,1712177872653,-763.12006,0.00049315,120]
[321417963,1712177872678,-613.563772,0.00049315,120]
[321417964,1712177872702,-229.92486,0.00049315,120]
[321417965,1712177872727,-613.563772,0.00049315,120]
[321417966,1712177872751,-229.92486,0.00049315,120]
[321417967,1712177872775,-613.563772,0.00049315,120]
[321417968,1712177872798,-229.92486,0.00049315,120]
[321417969,1712177872822,-613.563772,0.00049315,120]
[321417970,1712177872846,-229.92486,0.00049315,120]
[321417971,1712177872870,-613.563772,0.00049315,120]
[321417972,1712177872892,-229.92486,0.00049315,120]
[321417973,1712177872916,-613.563772,0.00049315,120]
[321417974,1712177872940,-229.92486,0.00049315,120]
[321417975,1712177872964,-613.563772,0.00049315,120]
[321417976,1712177872987,-229.92486,0.00049315,120]
[321417977,1712177873010,-229.92486,0.00049315,120]
[321417978,1712177873032,-229.92486,0.00049315,120]
[321417979,1712177873055,-229.92486,0.00049315,120]
[321417980,1712177873079,-229.92486,0.00049315,120]
[321417981,1712177873103,-229.92486,0.00049315,120]
[321417982,1712177873129,-229.92486,0.00049315,120]
[321417983,1712177873154,-229.92486,0.00049315,120]
[321417984,1712177873177,-2485.71151,0.00049315,120]
[321417985,1712177873202,-2485.71151,0.00049315,120]
[321417986,1712177873226,-2485.71151,0.00049315,120]
[321417987,1712177873249,-151.0,0.00049315,120]
[321417988,1712177873276,-2485.71151,0.00049315,120]
[321417989,1712177873298,-151.0,0.00049315,120]
[321417990,1712177873322,-2485.71151,0.00049315,120]
[321417991,1712177873347,-151.0,0.00049315,120]
[321417992,1712177873369,-151.0,0.00049315,120]
[321417993,1712177873392,-2485.71151,0.00049315,120]
[321417994,1712177873416,-151.0,0.00049315,120]
[321417995,1712177873440,-2485.71151,0.00049315,120]
[321417996,1712177873463,-151.0,0.00049315,120]
[321417997,1712177873486,-151.0,0.00049315,120]
[321417998,1712177873508,-2485.71151,0.00049315,120]
[321417999,1712177873532,-2485.71151,0.00049315,120]
[321418000,1712177873555,-2485.71151,0.00049315,120]
[321418001,1712177873577,-2485.71151,0.00049315,120]
[321418002,1712177873600,-2485.71151,0.00049315,120]
[321418003,1712177873623,-2485.71151,0.00049315,120]
[321418004,1712177873647,-2485.71151,0.00049315,120]
[321418005,1712177873670,-151.0,0.00049315,120]
[321418006,1712177873694,-151.0,0.00049315,120]
[321418007,1712177873719,-151.0,0.00049315,120]
[321418008,1712177873743,-151.0,0.00049315,120]
[321418009,1712177873767,-151.0,0.00049315,120]
[321418010,1712177873789,-151.0,0.00049315,120]
[321418011,1712177873812,-151.0,0.00049315,120]
[321418012,1712177873837,-182.524623,0.00049315,120]
[321418013,1712177873860,-151.0,0.00049315,120]
[321418014,1712177873883,-151.0,0.0004937,120]
[321418015,1712177873909,-173.040315,0.00049498,110]
[321418016,1712177873933,-2469.80838176,0.0004959,120]
[321418017,1712177873956,-2469.80838176,0.0004959,120]
[321418018,1712177874189,-2469.80838176,0.0004959,120]
[321418019,1712177874215,-2469.80838176,0.0004959,120]
[321418020,1712177874239,-2469.80838176,0.0004959,120]
[321418021,1712177874262,-2469.80838176,0.0004959,120]
[321418022,1712177874289,-2469.80838176,0.0004959,120]
[321418023,1712177874312,-2469.80838176,0.0004959,120]
[321418024,1712177874334,-2469.80838176,0.0004959,120]
[321418025,1712177874357,-2469.80838176,0.0004959,120]
[321418026,1712177874380,-2469.80838176,0.0004959,120]
[321418027,1712177874404,-2469.80838176,0.0004959,120]
[321418028,1712177874427,-2469.80838176,0.0004959,120]
[321418029,1712177874451,-2469.80838176,0.0004959,120]
[321418030,1712177874474,-2469.80838176,0.0004959,120]
[321418031,1712177874496,-2469.80838176,0.0004959,120]
[321418032,1712177874519,-2469.80838176,0.0004959,120]
[321418033,1712177874542,-2469.80838176,0.0004959,120]
[321418034,1712177874566,-2469.80838176,0.0004959,120]
[321418035,1712177874590,-2470.3,0.0004959,120]
[321418036,1712177874615,-9879.30852702,0.0004959,120]
[321418037,1712177874639,-9879.30852702,0.0004959,120]
[321418038,1712177874663,-9879.30852702,0.0004959,120]
[321418039,1712177874687,-9879.30852702,0.0004959,120]
[321418040,1712177874710,-9879.30852702,0.0004959,120]
[321418041,1712177874733,-9879.30852702,0.0004959,120]
[321418042,1712177874758,-9879.30852702,0.0004959,120]
[321418043,1712177874782,-9879.30852702,0.0004959,120]
[321418044,1712177874805,-9879.30852702,0.0004959,120]
[321418045,1712177874828,-9879.30852702,0.0004959,120]
[321418046,1712177874851,-712.71555112,0.0004959,120]
[321418047,1712177874874,-712.71555112,0.0004959,120]
[321418048,1712177874898,-712.71555112,0.0004959,120]
[321418049,1712177874922,-712.71555112,0.0004959,120]
[321418050,1712177874946,-712.71555112,0.0004959,120]
[321418051,1712177874970,-712.71555112,0.0004959,120]
[321418052,1712177874993,-712.71555112,0.0004959,120]
[321418053,1712177875017,-712.71555112,0.0004959,120]
[321418054,1712177875040,-712.71555112,0.0004959,120]
[321418055,1712177875063,-712.71555112,0.0004959,120]
[321418056,1712177875086,-712.71555112,0.0004959,120]
[321418057,1712177875108,-712.71555112,0.0004959,120]
[321418058,1712177875131,-712.71555112,0.0004959,120]
[321418059,1712177875155,-712.71555112,0.0004959,120]
[321418060,1712177875178,-712.71555112,0.0004959,120]
[321418061,1712177875205,-712.71555112,0.0004959,120]
[321418062,1712177875230,-712.71555112,0.0004959,120]
[321418063,1712177875254,-712.71555112,0.0004959,120]
[321418064,1712177875281,-712.71555112,0.0004959,120]
[321418065,1712177875306,-713.21,0.0004959,120]
[321418066,1712177875328,-2850.9372045,0.0004959,120]
[321418067,1712177875353,-2850.9372045,0.0004959,120]
[321418068,1712177875378,-2850.9372045,0.0004959,120]
[321418069,1712177875405,-2850.9372045,0.0004959,120]
[321418070,1712177875429,-2850.9372045,0.0004959,120]
[321418071,1712177875453,-2850.9372045,0.0004959,120]
[321418072,1712177875477,-2850.9372045,0.0004959,120]
[321418073,1712177875501,-2850.9372045,0.0004959,120]
[321418074,1712177875526,-2850.9372045,0.0004959,120]
[321418075,1712177875550,-2850.9372045,0.0004959,120]
[321418076,1712177875573,-155.66052387,0.0004959,120]
[321418077,1712177875596,-155.66052387,0.0004959,120]
[321418078,1712177875619,-155.66052387,0.0004959,120]
[321418079,1712177875642,-155.66052387,0.0004959,120]
[321418080,1712177875667,-155.66052387,0.0004959,120]
[321418081,1712177875691,-155.66052387,0.0004959,120]
[321418082,1712177875715,-155.66052387,0.0004959,120]
[321418083,1712177875739,-155.66052387,0.0004959,120]
[321418084,1712177875762,-155.66052387,0.0004959,120]
[321418085,1712177875785,-155.66052387,0.0004959,120]
[321418086,1712177875808,-155.66052387,0.0004959,120]
[321418087,1712177875830,-155.66052387,0.0004959,120]
[321418088,1712177875855,-155.66052387,0.0004959,120]
[321418089,1712177875879,-155.66052387,0.0004959,120]
[321418090,1712177875906,-155.66052387,0.0004959,120]
[321418091,1712177875928,-155.66052387,0.0004959,120]
[321418092,1712177875951,-156.16,0.0004959,120]
[321418093,1712177875974,-529.32078117,0.0004959,120]
[321418094,1712177875997,-529.32078117,0.0004959,120]
[321418095,1712177876020,-529.32078117,0.0004959,120]
[321418096,1712177876045,-529.32078117,0.0004959,120]
[321418097,1712177876069,-529.32078117,0.0004959,120]
[321418098,1712177876093,-529.32078117,0.0004959,120]
[321418099,1712177876285,-529.32078117,0.0004959,120]
[321418100,1712177876308,-529.32078117,0.0004959,120]
[321418101,1712177876333,-529.32078117,0.0004959,120]
[321418102,1712177876356,-529.32078117,0.0004959,120]
[321418103,1712177876380,-703.84292575,0.0004959,120]
[321418104,1712177876405,-703.84292575,0.0004959,120]
[321418105,1712177876428,-703.84292575,0.0004959,120]
[321418106,1712177876451,-703.84292575,0.0004959,120]
[321418107,1712177876475,-703.84292575,0.0004959,120]
[321418108,1712177876499,-703.84292575,0.0004959,120]
[321418109,1712177876521,-703.84292575,0.0004959,120]
[321418110,1712177876545,-703.84292575,0.0004959,120]
[321418111,1712177876568,-703.84292575,0.0004959,120]
[321418112,1712177876591,-703.84292575,0.0004959,120]
[321418113,1712177876615,-703.84292575,0.0004959,120]
[321418114,1712177876638,-703.84292575,0.0004959,120]
[321418115,1712177876660,-703.84292575,0.0004959,120]
[321418116,1712177876684,-703.84292575,0.0004959,120]
[321418117,1712177876707,-703.84292575,0.0004959,120]
[321418118,1712177876729,-703.84292575,0.0004959,120]
[321418119,1712177876751,-703.84292575,0.0004959,120]
[321418120,1712177876774,-703.84292575,0.0004959,120]
[321418121,1712177876796,-703.84292575,0.0004959,120]
[321418122,1712177876818,-704.34,0.0004959,120]
[321418123,1712177876841,-2815.446703,0.0004959,120]
[321418124,1712177876864,-2815.446703,0.0004959,120]
[321418125,1712177876886,-2815.446703,0.0004959,120]
[321418126,1712177876909,-2815.446703,0.0004959,120]
[321418127,1712177876932,-2815.446703,0.0004959,120]
[321418128,1712177876955,-2815.446703,0.0004959,120]
[321418129,1712177876978,-2815.446703,0.0004959,120]
[321418130,1712177877000,-2815.446703,0.0004959,120]
[321418131,1712177877022,-2815.446703,0.0004959,120]
[321418132,1712177877045,-2815.446703,0.0004959,120]
[321418133,1712177877068,-763.98148498,0.0004968,120]
[321418134,1712177877092,-9879.30852702,0.00049851,120]
[321418135,1712177877115,-2850.9372045,0.00049851,120]
[321418136,1712177877138,-529.32078117,0.00049851,120]
[321418137,1712177877161,-2815.446703,0.00049851,120]
[321418138,1712177877208,-578.359478,0.000499,120]
[321418139,1712177877252,-578.359478,0.000499,120]
[321418140,1712177877301,-763.12006,0.000499,120]
[321418141,1712177877347,-613.563772,0.000499,120]
[321418142,1712177877398,-763.12006,0.000499,120]
[321418143,1712177877443,-613.563772,0.000499,120]
[321418144,1712177877483,-229.92486,0.000499,120]
[321418145,1712177877521,-229.92486,0.000499,120]
[321418146,1712177877561,-2485.71151,0.000499,120]
[321418147,1712177877598,-153.498607,0.000499,120]
[321418148,1712177877637,-2485.71151,0.000499,120]
[321418149,1712177877678,-151.0,0.000499,120]
[321418150,1712177877717,-151.0,0.000499,120]
[321418151,1712177877757,-549.53878118,0.00049998,120]
[321418152,1712177877798,-269.07,0.0005,120]
[321418153,1712177877836,-673.58286115,0.0005,120]
[321418154,1712177877876,-300.0,0.0005,120]
[321418155,1712177877914,-10000.0,0.0005,120]
[321418156,1712177877949,-200.0,0.0005,120]
[321418157,1712177877988,-200.0,0.0005,120]
[321418158,1712177878025,-500.0,0.0005,120]
[321418159,1712177878060,-8000.0,0.0005,120]
[321418160,1712177878100,-25208.95877531,0.0005,120]
[321418161,1712177879580,1886.00950702,0.0002,2]
[321418162,1712177880049,806.58599354,0.0002,2]
[321418163,1712177880147,596.33,0.00020782,2]
[321418164,1712177880424,42460.78410892,0.0002,2]
[321418165,1712177880470,14010.6215953,0.0002,2]
[321418166,1712177881342,1037.57879944,0.0002,2]
[321418167,1712177882319,1048.12593455,0.00020781,2]
[321418168,1712177884942,179.61,0.0001784,2]
[321418169,1712177886856,7476.56281696,0.00019999,2]
[321418170,1712177887033,451.1818864,0.00017839,2]
[321418171,1712177889778,1048.12593455,0.0002078,2]
[321418172,1712177889919,383.94039202,0.00017838,2]
[321418173,1712177894143,1037.57879944,0.0002,2]
[321418174,1712177898445,42460.78410892,0.0002,2]
[321418175,1712177902098,-507.01542111,0.00048,120]
[321418176,1712177902127,-3160.30593643,0.00049,120]
[321418177,1712177902161,-151.0,0.00049315,120]
[321418178,1712177902187,-154.035489,0.00049315,120]
[321418179,1712177902211,-1858.80615,0.00049315,120]
[321418180,1712177902235,-1858.80615,0.00049315,120]
[321418181,1712177902259,-1858.80615,0.00049315,120]
[321418182,1712177902286,-1858.80615,0.00049315,120]
[321418183,1712177902309,-1858.80615,0.00049315,120]
[321418184,1712177902333,-1858.80615,0.00049315,120]
[321418185,1712177902359,-1858.80615,0.00049315,120]
[321418186,1712177902382,-1858.80615,0.00049315,120]
[321418187,1712177902407,-1858.80615,0.00049315,120]
[321418188,1712177902431,-1858.80615,0.00049315,120]
[321418189,1712177902457,-1858.80615,0.00049315,120]
[321418190,1712177902481,-1858.80615,0.00049315,120]
[321418191,1712177902505,-1858.80615,0.00049315,120]
[321418192,1712177902528,-1858.80615,0.00049315,120]
[321418193,1712177902745,-151.0,0.00049315,120]
[321418194,1712177902769,-228.367432,0.00049315,120]
[321418195,1712177902797,-1858.80615,0.000499,120]
[321418196,1712177902822,-1858.80615,0.000499,120]
[321418197,1712177902847,-4791.04122469,0.0005,120]
[321418198,1712177902871,-30000.0,0.0005,120]
[321418199,1712177902894,-30000.0,0.0005,120]
[321418200,1712177902919,-30000.0,0.0005,120]
[321418201,1712177902945,-30000.0,0.0005,120]
[321418202,1712177902968,-30000.0,0.0005,120]
[321418203,1712177902993,-8053.638314,0.0005,120]
[321418204,1712177903016,-713.42686463,0.0005,120]
[321418205,1712177903039,-225.33247851,0.0005,120]
[321418206,1712177903063,-168.21,0.0005,120]
[321418207,1712177903089,-293.86643056,0.0005,120]
[321418208,1712177903114,-1000.0,0.0005,120]
[321418209,1712177903137,-126290.8752671,0.0005,120]
[321418210,1712177903161,-156.10785485,0.0005,120]
[321418211,1712177903185,-182.86803483,0.0005,120]
[321418212,1712177903208,-151.0,0.0005,120]
[321418213,1712177903231,-150.0,0.0005,120]
[321418214,1712177903257,-3015.8900821,0.0005,120]
[321418215,1712177903284,-4789.4716714,0.0005,120]
[321418216,1712177903308,-150.0,0.0005,120]
[321418217,1712177903332,-2321.08637396,0.0005,120]
[321418218,1712177903357,-578.359478,0.0005,120]
[321418219,1712177903382,-578.359478,0.0005,120]
[321418220,1712177903406,-763.12006,0.0005,120]
[321418221,1712177903432,-613.563772,0.0005,120]
[321418222,1712177903457,-763.12006,0.0005,120]
[321418223,1712177903482,-613.563772,0.0005,120]
[321418224,1712177903506,-229.92486,0.0005,120]
[321418225,1712177903532,-229.92486,0.0005,120]
[321418226,1712177903558,-2485.71151,0.0005,120]
[321418227,1712177903582,-2485.71151,0.0005,120]
[321418228,1712177903606,-151.0,0.0005,120]
[321418229,1712177903629,-29370.0,0.0005,120]
[321418230,1712177903658,-154.451411,0.0005,120]
[321418231,1712177903683,-1858.80615,0.0005,120]
[321418232,1712177903708,-1858.80615,0.0005,120]
[321418233,1712177903733,-151.0,0.00050055,120]
[321418234,1712177903761,-150.0,0.00050294,120]
[321418235,1712177903785,-9879.30852702,0.00050399,120]
[321418236,1712177903811,-2850.9372045,0.00050399,120]
[321418237,1712177903835,-529.32078117,0.00050399,120]
[321418238,1712177903864,-2815.446703,0.00050399,120]
[321418239,1712177903890,-10126.66726896,0.0005048,120]
[321418240,1712177903916,-173.040315,0.00050498,111]
[321418241,1712177903942,-2018.0,0.000505,120]
[321418242,1712177903968,-28269.0,0.000506,120]
[321418243,1712177903993,-151.0,0.0005074,120]
[321418244,1712177904020,-2840.68441688,0.000509,120]
[321418245,1712177904045,-9879.30852702,0.00050947,120]
[321418246,1712177904069,-2850.9372045,0.00050947,120]
[321418247,1712177904094,-529.32078117,0.00050947,120]
[321418248,1712177904118,-2815.446703,0.00050947,120]
[321418249,1712177904141,-1000.0,0.00050999,120]
[321418250,1712177904166,-6075.46326135,0.00051,120]
[321418251,1712177904191,-2000.0,0.00051,120]
[321418252,1712177904216,-5000.0,0.00051,120]
[321418253,1712177904241,-296.8162044,0.00051,120]
[321418254,1712177904267,-5496.68909215,0.00051,120]
[321418255,1712177904292,-300.0,0.00051,120]
[321418256,1712177904317,-1516.0,0.00051,120]
[321418257,1712177904342,-150.0,0.00051,120]
[321418258,1712177904371,-157.040319,0.00051198,113]
[321418259,1712177904396,-578.359478,0.00051287,120]
[321418260,1712177904420,-578.35948,0.00051287,120]
[321418261,1712177904446,-763.12006,0.00051287,120]
[321418262,1712177904470,-613.563772,0.00051287,120]
[321418263,1712177904494,-763.120057,0.00051287,120]
[321418264,1712177904518,-613.563767,0.00051287,120]
[321418265,1712177904542,-229.92486,0.00051287,120]
[321418266,1712177904565,-229.924851,0.00051287,120]
[321418267,1712177904756,-2485.71151,0.00051287,120]
[321418268,1712177904796,-2485.711519,0.00051287,120]
[321418269,1712177904823,-150.0,0.00051399,120]
[321418270,1712177904850,-151.0,0.00051425,120]
[321418271,1712177904875,-9879.30852702,0.00051495,120]
[321418272,1712177904900,-2850.9372045,0.00051495,120]
[321418273,1712177904924,-529.32078117,0.00051495,120]
[321418274,1712177904951,-2815.446703,0.00051495,120]
[321418275,1712177904975,-151.0,0.00051495,120]
[321418276,1712177905001,-1858.80615,0.00051495,120]
[321418277,1712177905026,-1858.80614,0.00051495,120]
[321418278,1712177905051,-161.040319,0.00051498,111]
[321418279,1712177905077,-346.08063,0.00051498,112]
[321418280,1712177905100,-260.0,0.000515,120]
[321418281,1712177905125,-1000.0,0.00051506,120]
[321418282,1712177905149,-3130.6,0.00051788,117]
[321418283,1712177905174,-157.040319,0.00051798,112]
[321418284,1712177905198,-2192.0,0.000518,120]
[321418285,1712177905229,-1000.0,0.00051999,120]
[321418286,1712177905254,-9542.10618866,0.00052,120]
[321418287,1712177905279,-1000.0,0.00052,120]
[321418288,1712177905305,-30000.0,0.00052,120]
[321418289,1712177905330,-5085.83202755,0.00052,120]
[321418290,1712177905355,-49537.41943905,0.00052,120]
[321418291,1712177905381,-250.0,0.00052,120]
[321418292,1712177905406,-2000.0,0.00052,120]
[321418293,1712177905433,-500.0,0.00052,120]
[321418294,1712177905458,-500.0,0.00052,120]
[321418295,1712177905484,-1000.0,0.00052,120]
[321418296,1712177905509,-264549.787026,0.00052,120]
[321418297,1712177905534,-2000.0,0.00052,120]
[321418298,1712177905561,-5000.0,0.00052,120]
[321418299,1712177905586,-5000.0,0.00052,120]
[321418300,1712177905611,-9879.30852702,0.00052043,120]
[321418301,1712177905636,-2850.9372045,0.00052043,120]
[321418302,1712177905660,-529.32078117,0.00052043,120]
[321418303,1712177905684,-2815.446703,0.00052043,120]
[321418304,1712177905709,-1000.0,0.00052054,120]
[321418305,1712177905733,-2000.0,0.00052055,120]
[321418306,1712177905757,-1000.0,0.00052055,120]
[321418307,1712177905783,-25000.0,0.000521,120]
[321418308,1712177905807,-5000.0,0.000521,120]
[321418309,1712177905831,-5000.0,0.000521,120]
[321418310,1712177905857,-150.0,0.00052104,120]
[321418311,1712177905881,-151.0,0.0005211,120]
[321418312,1712177905908,-150.0,0.00052119,120]
[321418313,1712177905935,-161.040319,0.00052198,114]
[321418314,1712177905959,-5000.0,0.000522,120]
[321418315,1712177905983,-1497.42,0.000522,120]
[321418316,1712177906007,-1000.0,0.00052207,120]
[321418317,1712177906033,-151.0,0.00052219,120]
[321418318,1712177906061,-5000.0,0.000523,120]
[321418319,1712177906086,-1000.0,0.00052359,120]
[321418320,1712177906109,-5000.0,0.000524,120]